[Event "IMSA Blitz Women 2019"]
[Site "Hengshui"]
[Date "2019.05.17"]
[Round "3.2"]
[White "Lei, Tingjie"]
[Black "Stefanova, Antoaneta"]
[Result "1-0"]
[ECO "C60"]
[WhiteElo "2507"]
[BlackElo "2470"]
[Annotator "RC"]
[PlyCount "89"]
[EventDate "2019.05.17"]
[EventType "blitz"]
[EventCountry "CHN"]
[SourceTitle "playchess.com"]
[Source "ChessBase"]
[SourceQuality "1"]
[TimeControl "180+2"]

1. e4 {[%emt 0:00:00]} e5 {[%emt 0:00:00]} 2. Nf3 {[%emt 0:00:01]} Nc6 {[%emt 0:00:00]} 3. Bb5 {[%emt 0:00:01]} g6 {[%emt 0:00:01]} 4. c3 {[%emt 0:00:02]} a6 {[%emt 0:00:06]} 5. Bxc6 {[%emt 0:00:06]} dxc6 {[%emt 0:00:01]} 6. d4 {[%emt 0:00:02]} exd4 {[%emt 0:00:07]} 7. cxd4 {[%emt 0:00:03]} Bg7 {[%emt 0:00:03]} 8. h3 {[%emt 0:00:01]} Ne7 {[%emt 0:00:05]} 9. Nc3 {[%emt 0:00:02]} h6 {[%emt 0:00:02]} 10. Be3 {[%emt 0:00:06]} g5 {[%emt 0:00:26]} 11. Qd2 {[%emt 0:00:13]} Qd6 {[%emt 0:00:05]} 12. O-O-O {[%emt 0:00:13]} Be6 {[%emt 0:00:49]} 13. Kb1 {[%emt 0:00:01]} O-O-O {[%emt 0:00:04]} 14. Qc2 {[%emt 0:00:07]} g4 {[%emt 0:00:18]} 15. hxg4 {[%emt 0:00:02]} Bxg4 {[%emt 0:00:01]} 16. Na4 {[%emt 0:00:05]} Kb8 {[%emt 0:00:13]} 17. Nc5 {[%emt 0:00:03]} Nc8 {[%emt 0:00:02]} 18. Rd3 {[%emt 0:00:14]} Nb6 {[%emt 0:00:02]} 19. Nd2 {[%emt 0:00:02]} Be6 {[%emt 0:00:10]} 20. Rd1 {[%emt 0:00:06]} Qe7 {[%emt 0:00:04]} 21. Ndb3 {[%emt 0:00:08]} Bxb3 {[%emt 0:00:04]} 22. Rxb3 {[%emt 0:00:02]} h5 {[%emt 0:00:06]} 23. a4 {[%emt 0:00:02]} a5 {[%emt 0:00:02]} 24. Qc3 {[%emt 0:00:04]} h4 {[%emt 0:00:05]} 25. Qxa5 {[%emt 0:00:06]} Rh5 {[%emt 0:00:03]} 26. Rc1 {[%emt 0:00:50]} Bxd4 {[%emt 0:00:10]} 27. Bxd4 {[%emt 0:00:07]} Rxd4 {[%emt 0:00:02]} 28. Na6+ {[%emt 0:00:02]} bxa6 {[%emt 0:00:02]} 29. Rxb6+ {[%emt 0:00:01]} cxb6 {[%emt 0:00:09]} 30. Qxb6+ {[%emt 0:00:02]} Qb7 {[%emt 0:00:08]} 31. Qxd4 {[%emt 0:00:02]} Rh6 {[%emt 0:00:09]} 32. Rc3 {[%emt 0:00:10]} Rg6 {[%emt 0:00:10]} 33. Ka2 {[%emt 0:00:02]} Qc7 {[%emt 0:00:03]} 34. Rb3+ {[%emt 0:00:05]} Kc8 {[%emt 0:00:00]} 35. Qh8+ {[%emt 0:00:04]} Kd7 {[%emt 0:00:02]} 36. Rd3+ {[%emt 0:00:02]} Ke7 {[%emt 0:00:02]} 37. Qxh4+ {[%emt 0:00:02]} Ke6 {[%emt 0:00:08]} 38. Qh3+ {[%emt 0:00:06]} Ke7 {[%emt 0:00:01]} 39. Qh4+ {[%emt 0:00:02]} Ke6 {[%emt 0:00:01]} 40. f4 {[%emt 0:00:19]} Qa5 {[%emt 0:00:08]} 41. f5+ {[%emt 0:00:01]} Ke5 {[%emt 0:00:01]} 42. Qe7+ {[%emt 0:00:06]} Kf4 {[%emt 0:00:01]} 43. fxg6 {[%emt 0:00:11]} Qxa4+ {[%emt 0:00:01]} 44. Qa3 {[%emt 0:00:01]} Qc4+ {[%emt 0:00:01]} 45. Qb3 {[%emt 0:00:01]} 1-0

[Event "IMSA Blitz Women 2019"]
[Site "Hengshui"]
[Date "2019.05.17"]
[Round "3.2"]
[White "Zhao, Xue"]
[Black "Gunina, Valentina"]
[Result "0-1"]
[ECO "A15"]
[WhiteElo "2485"]
[BlackElo "2506"]
[Annotator "ChessBase"]
[PlyCount "76"]
[EventDate "2019.05.17"]
[EventType "blitz"]
[EventCountry "CHN"]
[SourceTitle "playchess.com"]
[Source "ChessBase"]
[SourceQuality "1"]
[TimeControl "180+2"]

1. c4 {[%emt 0:00:00]} Nf6 {[%emt 0:00:00]} 2. Nf3 {[%emt 0:00:01]} c5 {[%emt 0:00:02]} 3. g3 {[%emt 0:00:05]} Nc6 {[%emt 0:00:01]} 4. Bg2 {[%emt 0:00:02]} g6 {[%emt 0:00:01]} 5. b3 {[%emt 0:00:03]} Bg7 {[%emt 0:00:01]} 6. Bb2 {[%emt 0:00:01]} O-O {[%emt 0:00:01]} 7. O-O {[%emt 0:00:01]} b6 {[%emt 0:00:01]} 8. d4 {[%emt 0:00:01]} cxd4 {[%emt 0:00:05]} 9. Nxd4 {[%emt 0:00:02]} Bb7 {[%emt 0:00:02]} 10. Nc3 {[%emt 0:00:15]} Rc8 {[%emt 0:00:32]} 11. Rc1 {[%emt 0:00:26]} d6 {[%emt 0:00:09]} 12. Nc2 {[%emt 0:00:19]} Qd7 {[%emt 0:00:12]} 13. Ne3 {[%emt 0:00:05]} Ne5 {[%emt 0:00:08]} 14. f3 {[%emt 0:01:00]} a6 {[%emt 0:00:23]} 15. Qd2 {[%emt 0:00:23]} b5 {[%emt 0:00:11]} 16. Ncd5 {[%emt 0:00:10]} Nxd5 {[%emt 0:00:06]} 17. Nxd5 {[%emt 0:00:02]} Bxd5 {[%emt 0:00:05]} 18. cxd5 {[%emt 0:00:00]} Qa7+ {[%emt 0:00:10]} 19. e3 {[%emt 0:00:11]} a5 {[%emt 0:00:05]} 20. Bd4 {[%emt 0:00:04]} Qa8 {[%emt 0:00:02]} 21. Qb2 {[%emt 0:00:04]} Nd3 {[%emt 0:00:05]} 22. Rxc8 {[%emt 0:00:04]} Rxc8 {[%emt 0:00:08]} 23. Qa1 {[%emt 0:00:09]} Bxd4 {[%emt 0:00:10]} 24. Qxd4 {[%emt 0:00:01]} Nb4 {[%emt 0:00:01]} 25. f4 {[%emt 0:00:08]} Nxa2 {[%emt 0:00:02]} 26. Ra1 {[%emt 0:00:03]} Nc3 {[%emt 0:00:06]} 27. Bf3 {[%emt 0:00:09]} a4 {[%emt 0:00:15]} 28. bxa4 {[%emt 0:00:03]} bxa4 {[%emt 0:00:01]} 29. h4 {[%emt 0:00:02]} a3 {[%emt 0:00:07]} 30. h5 {[%emt 0:00:01]} f6 {[%emt 0:00:12]} 31. hxg6 {[%emt 0:00:04]} hxg6 {[%emt 0:00:01]} 32. Kg2 {[%emt 0:00:01]} Qb7 {[%emt 0:00:04]} 33. Bg4 {[%emt 0:00:02]} Qb2+ 34. Kh3 Ra8 {[%emt 0:00:07]} 35. Be6+ {[%emt 0:00:02]} Kg7 {[%emt 0:00:01]} 36. Rg1 {[%emt 0:00:02]} Ne2 {[%emt 0:00:04]} 37. Qxb2 {[%emt 0:00:01]} axb2 {[%emt 0:00:01]} 38. Rb1 {[%emt 0:00:01]} Rb8 {[%emt 0:00:01]} 0-1

[Event "IMSA Blitz Women 2019"]
[Site "Hengshui"]
[Date "2019.05.17"]
[Round "3.2"]
[White "Khotenashvili, Bela"]
[Black "Bodnaruk, Anastasia"]
[Result "1-0"]
[ECO "A45"]
[WhiteElo "2476"]
[BlackElo "2431"]
[Annotator "RC"]
[PlyCount "161"]
[EventDate "2019.05.17"]
[EventType "blitz"]
[EventCountry "CHN"]
[SourceTitle "playchess.com"]
[Source "ChessBase"]
[SourceQuality "1"]
[TimeControl "180+2"]

1. d4 {[%emt 0:00:00]} Nf6 {[%emt 0:00:00]} 2. Nc3 {[%emt 0:00:00]} d5 {[%emt 0:00:00]} 3. Bf4 {[%emt 0:00:01]} g6 {[%emt 0:00:02]} 4. e3 {[%emt 0:00:04]} Bg7 {[%emt 0:00:01]} 5. h4 {[%emt 0:00:01]} h5 {[%emt 0:00:02]} 6. Nb5 {[%emt 0:00:05]} Na6 {[%emt 0:00:03]} 7. Be2 {[%emt 0:00:06]} O-O {[%emt 0:00:04]} 8. Nf3 {[%emt 0:00:03]} Ne4 {[%emt 0:00:30]} 9. Ng5 {[%emt 0:00:09]} Nxg5 {[%emt 0:00:28]} 10. hxg5 {[%emt 0:00:11]} f6 {[%emt 0:00:34]} 11. Bxh5 {[%emt 0:00:38]} Qe8 {[%emt 0:00:44]} 12. Be2 {[%emt 0:00:12]} e5 {[%emt 0:00:03]} 13. Bg3 {[%emt 0:00:04]} c6 {[%emt 0:00:18]} 14. Nd6 {[%emt 0:00:11]} Qe7 {[%emt 0:00:01]} 15. Nxc8 Raxc8 {[%emt 0:00:00]} 16. gxf6 {[%emt 0:00:23]} Bxf6 {[%emt 0:00:01]} 17. Bxa6 {[%emt 0:00:15]} bxa6 {[%emt 0:00:03]} 18. Qg4 {[%emt 0:00:03]} Kg7 {[%emt 0:00:09]} 19. O-O-O {[%emt 0:00:06]} e4 {[%emt 0:00:12]} 20. Bf4 {[%emt 0:00:08]} Rh8 {[%emt 0:00:01]} 21. c3 {[%emt 0:00:08]} a5 {[%emt 0:00:03]} 22. Rh3 {[%emt 0:00:10]} Rxh3 {[%emt 0:00:02]} 23. gxh3 {[%emt 0:00:02]} Rh8 {[%emt 0:00:05]} 24. Rg1 {[%emt 0:00:02]} Qf7 {[%emt 0:00:01]} 25. Qg3 {[%emt 0:00:08]} Qe8 {[%emt 0:00:08]} 26. Bg5 {[%emt 0:00:17]} Bxg5 {[%emt 0:00:03]} 27. Qxg5 {[%emt 0:00:01]} Rxh3 {[%emt 0:00:01]} 28. Rg3 {[%emt 0:00:13]} Rh1+ {[%emt 0:00:07]} 29. Kc2 {[%emt 0:00:01]} Rh2 {[%emt 0:00:06]} 30. Rg2 {[%emt 0:00:04]} Rxg2 31. Qxg2 {[%emt 0:00:01]} c5 {[%emt 0:00:05]} 32. b3 {[%emt 0:00:09]} cxd4 {[%emt 0:00:02]} 33. exd4 {[%emt 0:00:02]} a4 {[%emt 0:00:01]} 34. Qg5 {[%emt 0:00:03]} axb3+ 35. axb3 {[%emt 0:00:01]} Qe6 {[%emt 0:00:03]} 36. Qf4 {[%emt 0:00:06]} a5 {[%emt 0:00:01]} 37. Qc7+ {[%emt 0:00:02]} Qf7 {[%emt 0:00:01]} 38. Qe5+ {[%emt 0:00:01]} Kh6 {[%emt 0:00:02]} 39. Qh2+ {[%emt 0:00:03]} Kg7 {[%emt 0:00:03]} 40. Qe5+ {[%emt 0:00:01]} Kh6 {[%emt 0:00:03]} 41. Qh2+ {[%emt 0:00:02]} Kg7 {[%emt 0:00:00]} 42. b4 {[%emt 0:00:03]} axb4 {[%emt 0:00:01]} 43. cxb4 {[%emt 0:00:01]} Qb7 {[%emt 0:00:02]} 44. Kb3 {[%emt 0:00:01]} Qb5 {[%emt 0:00:01]} 45. Qe5+ {[%emt 0:00:01]} Kf7 {[%emt 0:00:03]} 46. Qf4+ {[%emt 0:00:02]} Kg7 {[%emt 0:00:01]} 47. Qc7+ {[%emt 0:00:01]} Kh6 {[%emt 0:00:02]} 48. Qc1+ {[%emt 0:00:02]} g5 {[%emt 0:00:03]} 49. Qc3 {[%emt 0:00:04]} Qf1 {[%emt 0:00:03]} 50. Qc6+ {[%emt 0:00:01]} Kh5 {[%emt 0:00:01]} 51. Qxd5 {[%emt 0:00:01]} Qd3+ {[%emt 0:00:03]} 52. Ka4 {[%emt 0:00:01]} Qc2+ {[%emt 0:00:03]} 53. Ka5 {[%emt 0:00:01]} Kg4 {[%emt 0:00:04]} 54. b5 {[%emt 0:00:02]} Kf3 {[%emt 0:00:03]} 55. Qf5+ {[%emt 0:00:02]} Ke2 {[%emt 0:00:01]} 56. d5 {[%emt 0:00:05]} Qa2+ {[%emt 0:00:02]} 57. Kb6 {[%emt 0:00:01]} Qc4 {[%emt 0:00:01]} 58. Qxg5 {[%emt 0:00:03]} Kxf2 {[%emt 0:00:01]} 59. d6 {[%emt 0:00:03]} e3 {[%emt 0:00:02]} 60. Qc5 {[%emt 0:00:02]} Qe6 {[%emt 0:00:02]} 61. Kc7 {[%emt 0:00:02]} Kf1 {[%emt 0:00:04]} 62. Qc1+ {[%emt 0:00:01]} Kf2 {[%emt 0:00:02]} 63. Qb2+ {[%emt 0:00:02]} e2 {[%emt 0:00:00]} 64. d7 {[%emt 0:00:01]} Qe7 {[%emt 0:00:02]} 65. Kc8 {[%emt 0:00:01]} Qe6 {[%emt 0:00:01]} 66. Kc7 {[%emt 0:00:01]} Qe7 {[%emt 0:00:04]} 67. b6 {[%emt 0:00:01]} Kf1 {[%emt 0:00:02]} 68. Qb5 {[%emt 0:00:01]} Kf2 {[%emt 0:00:01]} 69. Qf5+ {[%emt 0:00:01]} Kg1 {[%emt 0:00:02]} 70. Qg4+ {[%emt 0:00:02]} Kf2 {[%emt 0:00:01]} 71. Qf4+ {[%emt 0:00:00]} Kg2 {[%emt 0:00:01]} 72. Qd2 {[%emt 0:00:02]} Kf1 {[%emt 0:00:02]} 73. Qd3 {[%emt 0:00:02]} Kf2 {[%emt 0:00:00]} 74. Qd2 {[%emt 0:00:02]} Kf1 {[%emt 0:00:01]} 75. b7 {[%emt 0:00:02]} Qc5+ {[%emt 0:00:09]} 76. Kb8 {[%emt 0:00:03]} Qe5+ {[%emt 0:00:02]} 77. Ka8 {[%emt 0:00:04]} Qh8+ {[%emt 0:00:03]} 78. d8=Q {[%emt 0:00:02]} Qxd8+ {[%emt 0:00:01]} 79. Qxd8 {[%emt 0:00:01]} e1=Q {[%emt 0:00:01]} 80. b8=Q {[%emt 0:00:03]} Qa1+ {[%emt 0:00:02]} 81. Qa7 {[%emt 0:00:01]} 1-0

[Event "IMSA Blitz Women 2019"]
[Site "Hengshui"]
[Date "2019.05.17"]
[Round "4.1"]
[White "Muzychuk, Mariya"]
[Black "Khotenashvili, Bela"]
[Result "0-1"]
[ECO "B15"]
[WhiteElo "2563"]
[BlackElo "2476"]
[Annotator "ChessBase"]
[PlyCount "180"]
[EventDate "2019.05.17"]
[EventType "blitz"]
[EventCountry "CHN"]
[SourceTitle "playchess.com"]
[Source "ChessBase"]
[SourceQuality "1"]
[TimeControl "180+2"]

1. e4 {[%emt 0:00:00]} c6 {[%emt 0:00:00]} 2. d4 {[%emt 0:00:00]} d5 {[%emt 0:00:00]} 3. Nc3 {[%emt 0:00:00]} dxe4 {[%emt 0:00:00]} 4. Nxe4 {[%emt 0:00:01]} Nf6 {[%emt 0:00:01]} 5. Nxf6+ {[%emt 0:00:01]} exf6 {[%emt 0:00:01]} 6. c3 {[%emt 0:00:01]} Bd6 {[%emt 0:00:01]} 7. Nf3 {[%emt 0:00:02]} O-O {[%emt 0:00:11]} 8. Be2 {[%emt 0:00:01]} Re8 {[%emt 0:00:01]} 9. O-O {[%emt 0:00:02]} Nd7 {[%emt 0:00:01]} 10. h3 {[%emt 0:00:01]} Nf8 {[%emt 0:00:02]} 11. Re1 {[%emt 0:00:09]} Ng6 {[%emt 0:00:03]} 12. Bc4 {[%emt 0:00:17]} Rxe1+ 13. Qxe1 Bf5 {[%emt 0:00:13]} 14. Be3 {[%emt 0:00:42]} Qd7 {[%emt 0:00:02]} 15. Bf1 {[%emt 0:00:05]} Nf4 {[%emt 0:00:14]} 16. Qd2 {[%emt 0:00:07]} Nd5 {[%emt 0:00:03]} 17. Re1 {[%emt 0:00:22]} Re8 {[%emt 0:00:02]} 18. Bd3 {[%emt 0:00:14]} h6 {[%emt 0:00:18]} 19. a3 {[%emt 0:00:16]} b5 {[%emt 0:00:13]} 20. Qc2 {[%emt 0:00:04]} Bxd3 {[%emt 0:00:05]} 21. Qxd3 {[%emt 0:00:01]} a5 {[%emt 0:00:11]} 22. Kf1 {[%emt 0:00:06]} Nb6 {[%emt 0:00:21]} 23. Nd2 {[%emt 0:00:08]} Qe6 {[%emt 0:00:05]} 24. Qb1 {[%emt 0:00:11]} Nc4 {[%emt 0:00:15]} 25. Nxc4 {[%emt 0:00:07]} Qxc4+ {[%emt 0:00:01]} 26. Kg1 {[%emt 0:00:01]} a4 {[%emt 0:00:09]} 27. Bd2 {[%emt 0:00:11]} Re6 {[%emt 0:00:08]} 28. g3 {[%emt 0:00:09]} h5 {[%emt 0:00:05]} 29. Rxe6 {[%emt 0:00:05]} Qxe6 {[%emt 0:00:02]} 30. Kg2 {[%emt 0:00:15]} Qb3 {[%emt 0:00:22]} 31. Qf5 {[%emt 0:00:17]} Qxb2 {[%emt 0:00:28]} 32. Qc8+ {[%emt 0:00:01]} Bf8 {[%emt 0:00:06]} 33. Bf4 {[%emt 0:00:01]} Qb3 {[%emt 0:00:03]} 34. Qxc6 {[%emt 0:00:04]} Bxa3 {[%emt 0:00:10]} 35. d5 {[%emt 0:00:01]} Qc4 {[%emt 0:00:03]} 36. Qxc4 {[%emt 0:00:04]} bxc4 {[%emt 0:00:01]} 37. d6 {[%emt 0:00:01]} Kf8 {[%emt 0:00:01]} 38. Kf3 {[%emt 0:00:02]} Bb2 {[%emt 0:00:05]} 39. Ke4 {[%emt 0:00:01]} a3 {[%emt 0:00:02]} 40. Kd5 {[%emt 0:00:00]} a2 {[%emt 0:00:04]} 41. d7 {[%emt 0:00:00]} Ke7 {[%emt 0:00:02]} 42. Kc6 {[%emt 0:00:01]} a1=Q {[%emt 0:00:06]} 43. Bd6+ {[%emt 0:00:01]} Ke6 {[%emt 0:00:01]} 44. d8=Q {[%emt 0:00:04]} Qa4+ {[%emt 0:00:01]} 45. Kb6 {[%emt 0:00:03]} Bxc3 {[%emt 0:00:03]} 46. Kc5 {[%emt 0:00:07]} Bb4+ {[%emt 0:00:01]} 47. Kd4 {[%emt 0:00:03]} Bxd6 {[%emt 0:00:01]} 48. Qc8+ {[%emt 0:00:01]} Ke7 {[%emt 0:00:01]} 49. Qb7+ {[%emt 0:00:01]} Qd7 {[%emt 0:00:01]} 50. Qe4+ {[%emt 0:00:01]} Be5+ {[%emt 0:00:00]} 51. Kxc4 {[%emt 0:00:01]} Qc7+ {[%emt 0:00:01]} 52. Kd3 {[%emt 0:00:01]} Qc3+ {[%emt 0:00:01]} 53. Ke2 {[%emt 0:00:00]} Qb3 {[%emt 0:00:02]} 54. f4 {[%emt 0:00:03]} Qb2+ {[%emt 0:00:02]} 55. Kf3 {[%emt 0:00:01]} Qc3+ {[%emt 0:00:02]} 56. Kg2 {[%emt 0:00:01]} Qd2+ {[%emt 0:00:02]} 57. Kf3 {[%emt 0:00:01]} Qc3+ {[%emt 0:00:01]} 58. Kg2 {[%emt 0:00:01]} Qd4 {[%emt 0:00:02]} 59. Qb7+ {[%emt 0:00:04]} Qd7 {[%emt 0:00:00]} 60. Qe4 {[%emt 0:00:05]} Qd4 {[%emt 0:00:01]} 61. Qb7+ {[%emt 0:00:01]} Ke6 {[%emt 0:00:03]} 62. Qc8+ {[%emt 0:00:03]} Ke7 {[%emt 0:00:04]} 63. fxe5 {[%emt 0:00:02]} fxe5 {[%emt 0:00:01]} 64. Qc7+ {[%emt 0:00:02]} Kf6 {[%emt 0:00:01]} 65. Qc6+ {[%emt 0:00:02]} Kf5 {[%emt 0:00:03]} 66. Qf3+ {[%emt 0:00:02]} Kg6 {[%emt 0:00:01]} 67. Qc6+ {[%emt 0:00:02]} Kh7 {[%emt 0:00:04]} 68. Qb7 {[%emt 0:00:03]} Qc4 {[%emt 0:00:04]} 69. Qd7 {[%emt 0:00:02]} Qc2+ {[%emt 0:00:03]} 70. Kg1 {[%emt 0:00:02]} Qc5+ {[%emt 0:00:02]} 71. Kg2 {[%emt 0:00:01]} f6 {[%emt 0:00:02]} 72. Qf7 {[%emt 0:00:02]} Qc2+ {[%emt 0:00:02]} 73. Kg1 {[%emt 0:00:02]} Qg6 {[%emt 0:00:01]} 74. Qb3 {[%emt 0:00:01]} Qf5 {[%emt 0:00:02]} 75. Kg2 {[%emt 0:00:01]} Qe4+ {[%emt 0:00:03]} 76. Kf2 {[%emt 0:00:01]} Qd4+ {[%emt 0:00:01]} 77. Kg2 {[%emt 0:00:01]} e4 {[%emt 0:00:00]} 78. Qf7 {[%emt 0:00:02]} Qd2+ {[%emt 0:00:02]} 79. Kg1 {[%emt 0:00:01]} Qg5 {[%emt 0:00:02]} 80. Kf2 {[%emt 0:00:01]} Qf5+ {[%emt 0:00:01]} 81. Kg2 {[%emt 0:00:02]} Qf3+ {[%emt 0:00:02]} 82. Kh2 {[%emt 0:00:00]} Qf2+ {[%emt 0:00:00]} 83. Kh1 {[%emt 0:00:00]} Qf3+ 84. Kh2 e3 85. g4 Qf4+ {[%emt 0:00:13]} 86. Kg2 {[%emt 0:00:02]} Qe4+ {[%emt 0:00:01]} 87. Kf1 {[%emt 0:00:03]} Qf3+ {[%emt 0:00:02]} 88. Kg1 {[%emt 0:00:03]} Qg3+ {[%emt 0:00:00]} 89. Kh1 {[%emt 0:00:01]} Qxh3+ {[%emt 0:00:02]} 90. Kg1 {[%emt 0:00:00]} Qxg4+ {[%emt 0:00:01]} 0-1

[Event "IMSA Blitz Women 2019"]
[Site "Hengshui"]
[Date "2019.05.17"]
[Round "4.1"]
[White "Lei, Tingjie"]
[Black "Kosteniuk, Alexandra"]
[Result "1-0"]
[ECO "E04"]
[WhiteElo "2507"]
[BlackElo "2546"]
[Annotator "ChessBase"]
[PlyCount "63"]
[EventDate "2019.05.17"]
[EventType "blitz"]
[EventCountry "CHN"]
[SourceTitle "playchess.com"]
[Source "ChessBase"]
[SourceQuality "1"]
[TimeControl "180+2"]

1. d4 {[%emt 0:00:00]} Nf6 {[%emt 0:00:00]} 2. c4 {[%emt 0:00:00]} e6 {[%emt 0:00:00]} 3. g3 {[%emt 0:00:02]} d5 {[%emt 0:00:00]} 4. Bg2 {[%emt 0:00:01]} dxc4 {[%emt 0:00:01]} 5. Nf3 {[%emt 0:00:01]} Nc6 {[%emt 0:00:01]} 6. O-O {[%emt 0:00:08]} Rb8 {[%emt 0:00:02]} 7. a4 {[%emt 0:00:04]} a6 {[%emt 0:00:07]} 8. Nc3 {[%emt 0:00:48]} Be7 {[%emt 0:00:06]} 9. e4 {[%emt 0:00:14]} O-O {[%emt 0:00:04]} 10. e5 {[%emt 0:00:02]} Nd5 {[%emt 0:00:04]} 11. h4 {[%emt 0:00:20]} Ncb4 {[%emt 0:00:04]} 12. Qe2 {[%emt 0:00:03]} Nd3 {[%emt 0:00:13]} 13. Bg5 {[%emt 0:00:03]} h6 {[%emt 0:00:08]} 14. Bxe7 {[%emt 0:00:03]} Qxe7 {[%emt 0:00:03]} 15. Ne4 {[%emt 0:00:15]} b5 {[%emt 0:00:10]} 16. axb5 {[%emt 0:00:02]} axb5 {[%emt 0:00:00]} 17. b3 {[%emt 0:00:01]} Bb7 {[%emt 0:00:08]} 18. bxc4 {[%emt 0:00:08]} bxc4 {[%emt 0:00:01]} 19. Nfd2 {[%emt 0:00:07]} Nb6 {[%emt 0:00:13]} 20. Nxc4 {[%emt 0:00:16]} Nxc4 {[%emt 0:00:01]} 21. Qxd3 {[%emt 0:00:01]} Bd5 {[%emt 0:00:01]} 22. Rfc1 {[%emt 0:00:11]} Nb6 {[%emt 0:00:13]} 23. Ra7 {[%emt 0:00:06]} Rfc8 {[%emt 0:00:06]} 24. Nd6 {[%emt 0:00:04]} Bxg2 {[%emt 0:00:24]} 25. Kxg2 {[%emt 0:00:02]} Nd5 {[%emt 0:00:15]} 26. Nxc8 {[%emt 0:00:02]} Rxc8 {[%emt 0:00:00]} 27. Rb1 {[%emt 0:00:07]} Qd8 {[%emt 0:00:16]} 28. Rc1 {[%emt 0:00:11]} c5 {[%emt 0:00:02]} 29. Qf3 {[%emt 0:00:04]} f5 {[%emt 0:00:27]} 30. exf6 {[%emt 0:00:06]} Nxf6 {[%emt 0:00:02]} 31. Rxc5 {[%emt 0:00:03]} Rxc5 {[%emt 0:00:11]} 32. dxc5 {[%emt 0:00:01]} 1-0

[Event "IMSA Blitz Women 2019"]
[Site "Hengshui"]
[Date "2019.05.17"]
[Round "4.1"]
[White "Gunina, Valentina"]
[Black "Harika, Dronavalli"]
[Result "1/2-1/2"]
[ECO "C07"]
[WhiteElo "2506"]
[BlackElo "2492"]
[Annotator "RC"]
[PlyCount "138"]
[EventDate "2019.05.17"]
[EventType "blitz"]
[EventCountry "CHN"]
[SourceTitle "playchess.com"]
[Source "ChessBase"]
[SourceQuality "1"]
[TimeControl "180+2"]

1. e4 {[%emt 0:00:00]} e6 {[%emt 0:00:00]} 2. d4 {[%emt 0:00:02]} d5 {[%emt 0:00:00]} 3. Nd2 {[%emt 0:00:01]} c5 {[%emt 0:00:00]} 4. Ngf3 {[%emt 0:00:02]} cxd4 {[%emt 0:00:00]} 5. exd5 {[%emt 0:00:01]} Qxd5 {[%emt 0:00:01]} 6. Bc4 {[%emt 0:00:01]} Qd8 {[%emt 0:00:01]} 7. O-O {[%emt 0:00:02]} Nc6 {[%emt 0:00:01]} 8. Nb3 {[%emt 0:00:01]} a6 {[%emt 0:00:07]} 9. Nbxd4 {[%emt 0:00:02]} Nxd4 {[%emt 0:00:01]} 10. Nxd4 {[%emt 0:00:02]} Qc7 {[%emt 0:00:01]} 11. Qe2 {[%emt 0:00:08]} Bd6 {[%emt 0:00:04]} 12. h3 {[%emt 0:00:04]} Ne7 {[%emt 0:00:02]} 13. c3 {[%emt 0:00:07]} O-O {[%emt 0:00:23]} 14. Be3 {[%emt 0:00:05]} Ng6 {[%emt 0:00:08]} 15. Bb3 {[%emt 0:00:05]} e5 {[%emt 0:00:15]} 16. Nf3 {[%emt 0:00:08]} Bf5 {[%emt 0:00:06]} 17. Rad1 {[%emt 0:00:04]} Rad8 {[%emt 0:00:06]} 18. Qc4 {[%emt 0:00:12]} h6 {[%emt 0:00:15]} 19. Rfe1 {[%emt 0:00:18]} Qxc4 {[%emt 0:00:07]} 20. Bxc4 {[%emt 0:00:01]} Bc7 {[%emt 0:00:00]} 21. Bd5 {[%emt 0:00:07]} b6 {[%emt 0:00:20]} 22. Bb7 {[%emt 0:00:06]} a5 {[%emt 0:00:05]} 23. Bc6 {[%emt 0:00:10]} Ne7 {[%emt 0:00:12]} 24. Bb5 {[%emt 0:00:06]} Be6 {[%emt 0:00:02]} 25. c4 {[%emt 0:00:11]} Nf5 {[%emt 0:00:06]} 26. Bc1 {[%emt 0:00:09]} f6 {[%emt 0:00:03]} 27. b3 {[%emt 0:00:04]} Rxd1 {[%emt 0:00:07]} 28. Rxd1 {[%emt 0:00:01]} Rd8 {[%emt 0:00:00]} 29. Rxd8+ {[%emt 0:00:07]} Bxd8 {[%emt 0:00:01]} 30. g4 {[%emt 0:00:16]} Nd6 {[%emt 0:00:07]} 31. Bc6 {[%emt 0:00:01]} Kf7 {[%emt 0:00:03]} 32. Ba3 {[%emt 0:00:01]} Be7 {[%emt 0:00:02]} 33. Nd2 {[%emt 0:00:12]} Nc8 {[%emt 0:00:15]} 34. Bb2 {[%emt 0:00:04]} Bb4 {[%emt 0:00:01]} 35. Ne4 {[%emt 0:00:03]} Nd6 {[%emt 0:00:17]} 36. a3 {[%emt 0:00:01]} Nxe4 {[%emt 0:00:17]} 37. axb4 {[%emt 0:00:01]} Nd2 {[%emt 0:00:02]} 38. bxa5 bxa5 {[%emt 0:00:01]} 39. Ba4 {[%emt 0:00:11]} Ne4 {[%emt 0:00:01]} 40. Ba3 {[%emt 0:00:10]} h5 {[%emt 0:00:04]} 41. f3 {[%emt 0:00:07]} Nd2 {[%emt 0:00:04]} 42. Kf2 {[%emt 0:00:05]} e4 {[%emt 0:00:02]} 43. fxe4 {[%emt 0:00:13]} Nxe4+ {[%emt 0:00:01]} 44. Kf3 {[%emt 0:00:03]} Ng5+ {[%emt 0:00:02]} 45. Kg3 {[%emt 0:00:04]} hxg4 {[%emt 0:00:01]} 46. hxg4 {[%emt 0:00:01]} Ne4+ {[%emt 0:00:01]} 47. Kf4 {[%emt 0:00:05]} Nf2 {[%emt 0:00:03]} 48. Bd6 {[%emt 0:00:12]} Nxg4 {[%emt 0:00:02]} 49. Bc7 {[%emt 0:00:01]} g5+ {[%emt 0:00:02]} 50. Kf3 {[%emt 0:00:06]} Ne5+ {[%emt 0:00:02]} 51. Ke4 {[%emt 0:00:02]} Nxc4 {[%emt 0:00:07]} 52. bxc4 {[%emt 0:00:03]} Bxc4 {[%emt 0:00:01]} 53. Bxa5 {[%emt 0:00:02]} Be6 {[%emt 0:00:01]} 54. Kd4 {[%emt 0:00:04]} Ba2 {[%emt 0:00:10]} 55. Bd1 {[%emt 0:00:03]} Be6 {[%emt 0:00:02]} 56. Kc5 {[%emt 0:00:01]} Kg6 {[%emt 0:00:09]} 57. Bc3 {[%emt 0:00:02]} f5 {[%emt 0:00:02]} 58. Kd6 {[%emt 0:00:01]} Bc8 {[%emt 0:00:05]} 59. Bc2 {[%emt 0:00:01]} g4 {[%emt 0:00:02]} 60. Be5 {[%emt 0:00:04]} Kg5 {[%emt 0:00:02]} 61. Kc5 {[%emt 0:00:05]} f4 {[%emt 0:00:03]} 62. Kd4 {[%emt 0:00:03]} Bf5 {[%emt 0:00:03]} 63. Bd1 {[%emt 0:00:02]} g3 {[%emt 0:00:01]} 64. Bf3 {[%emt 0:00:01]} Bg4 {[%emt 0:00:01]} 65. Bb7 {[%emt 0:00:02]} Bf5 {[%emt 0:00:01]} 66. Bc7 {[%emt 0:00:03]} Kg4 {[%emt 0:00:01]} 67. Bg2 {[%emt 0:00:07]} f3 {[%emt 0:00:01]} 68. Bxf3+ {[%emt 0:00:01]} Kxf3 {[%emt 0:00:00]} 69. Bxg3 {[%emt 0:00:01]} Kxg3 {[%emt 0:00:01] Ke4} 1/2-1/2